[Event "*** SCC Grand Prix: Titled Tuesday Blitz"]
[Site "Chess.com"]
[Date "2020.09.29"]
[Round "1"]
[White "Kotofeyca"]
[Black "Fy_Rakotomaharo"]
[Result "0-1"]
[WhiteElo "2345"]
[BlackElo "2672"]
[TimeControl "180+1"]
[EndTime "10:08:35 PDT"]
[Termination "Fy_Rakotomaharo won by checkmate"]

1. d4 {[%clk 0:02:27.7]} 1... Nf6 {[%clk 0:02:46.1]} 2. c4 {[%clk 0:02:27.7]}
2... g6 {[%clk 0:02:47]} 3. f3 {[%clk 0:02:27.4]} 3... d5 {[%clk 0:02:47]} 4.
cxd5 {[%clk 0:02:27.1]} 4... Nxd5 {[%clk 0:02:47.9]} 5. e4 {[%clk 0:02:27.7]}
5... Nb6 {[%clk 0:02:48.1]} 6. Nc3 {[%clk 0:02:28.6]} 6... Bg7 {[%clk
0:02:48.7]} 7. Be3 {[%clk 0:02:29.3]} 7... O-O {[%clk 0:02:48.3]} 8. Qd2 {[%clk
0:02:29.7]} 8... Nc6 {[%clk 0:02:48.2]} 9. O-O-O {[%clk 0:02:29.3]} 9... Qd6
{[%clk 0:02:48.8]} 10. h4 {[%clk 0:02:25.8]} 10... Rd8 {[%clk 0:02:48.3]} 11. d5
{[%clk 0:02:23.7]} 11... Ne5 {[%clk 0:02:39.2]} 12. Nb5 {[%clk 0:02:15.3]} 12...
Qd7 {[%clk 0:02:36.9]} 13. Qc2 {[%clk 0:02:08.6]} 13... c6 {[%clk 0:02:21.4]}
14. dxc6 {[%clk 0:02:08.6]} 14... Qxd1+ {[%clk 0:02:19.2]} 15. Qxd1 {[%clk
0:02:09.5]} 15... Rxd1+ {[%clk 0:02:19.2]} 16. Kxd1 {[%clk 0:02:10.4]} 16...
bxc6 {[%clk 0:02:15.6]} 17. Nc3 {[%clk 0:01:47.9]} 17... Be6 {[%clk 0:01:59.5]}
18. Kc2 {[%clk 0:01:41]} 18... Nbc4 {[%clk 0:01:40.1]} 19. Bc1 {[%clk
0:01:37.2]} 19... Rb8 {[%clk 0:01:31]} 20. Nge2 {[%clk 0:01:31]} 20... Nd6
{[%clk 0:01:20.4]} 21. Nd4 {[%clk 0:01:21.7]} 21... Bd7 {[%clk 0:01:18.7]} 22.
Nb3 {[%clk 0:01:19.4]} 22... f5 {[%clk 0:01:15.8]} 23. Nc5 {[%clk 0:01:16.4]}
23... fxe4 {[%clk 0:01:09.6]} 24. f4 {[%clk 0:01:08.5]} 24... Nb5 {[%clk
0:00:45.2]} 25. Nxd7 {[%clk 0:01:05.8]} 25... Nxd7 {[%clk 0:00:43.9]} 26. Bc4+
{[%clk 0:01:03.1]} 26... Kf8 {[%clk 0:00:41.9]} 27. Nxe4 {[%clk 0:01:01.5]}
27... Nd4+ {[%clk 0:00:42]} 28. Kb1 {[%clk 0:00:59.2]} 28... Nb6 {[%clk
0:00:40.5]} 29. Bd3 {[%clk 0:00:43.4]} 29... Na4 {[%clk 0:00:39.9]} 30. b3
{[%clk 0:00:40.6]} 30... Nf5 {[%clk 0:00:29.2]} 31. Ba3 {[%clk 0:00:37.2]} 31...
Rd8 {[%clk 0:00:20]} 32. Bc2 {[%clk 0:00:28.1]} 32... Nc3+ {[%clk 0:00:19.8]}
33. Nxc3 {[%clk 0:00:28.2]} 33... Bxc3 {[%clk 0:00:20.7]} 34. g4 {[%clk
0:00:25.5]} 34... Ne3 {[%clk 0:00:19.5]} 35. Be4 {[%clk 0:00:23.2]} 35... Nxg4
{[%clk 0:00:16.7]} 36. Bxc6 {[%clk 0:00:22.1]} 36... Rd2 {[%clk 0:00:16.7]} 37.
h5 {[%clk 0:00:19.2]} 37... Kg7 {[%clk 0:00:12.1]} 38. hxg6 {[%clk 0:00:18.9]}
38... hxg6 {[%clk 0:00:13]} 39. Rc1 {[%clk 0:00:17.7]} 39... Bf6 {[%clk
0:00:12]} 40. Rg1 {[%clk 0:00:13.8]} 40... Ne3 {[%clk 0:00:11.3]} 41. Be4 {[%clk
0:00:13.6]} 41... Kf8 {[%clk 0:00:08.4]} 42. Bxg6 {[%clk 0:00:12.8]} 42... Nd5
{[%clk 0:00:09]} 43. Bf5 {[%clk 0:00:05.5]} 43... Nc3+ {[%clk 0:00:08.9]} 44.
Kc1 {[%clk 0:00:05.7]} 44... Rxa2 {[%clk 0:00:08.3]} 45. Rg3 {[%clk 0:00:03.6]}
45... Ne2+ {[%clk 0:00:08.4]} 46. Kb1 {[%clk 0:00:03.8]} 46... Ra1+ {[%clk
0:00:08.7]} 47. Kc2 {[%clk 0:00:04.1]} 47... Nxg3 {[%clk 0:00:09.6]} 48. Bd3
{[%clk 0:00:03.9]} 48... Rxa3 {[%clk 0:00:09.8]} 49. Bc4 {[%clk 0:00:03.9]}
49... Ra2+ {[%clk 0:00:10.1]} 50. Kd3 {[%clk 0:00:04.8]} 50... Rf2 {[%clk
0:00:09.8]} 51. Ke3 {[%clk 0:00:05.7]} 51... Rb2 {[%clk 0:00:08.1]} 52. Kf3
{[%clk 0:00:06.6]} 52... Nf5 {[%clk 0:00:08.4]} 53. Ke4 {[%clk 0:00:06.6]} 53...
Nd4 {[%clk 0:00:09.3]} 54. Kd5 {[%clk 0:00:06.4]} 54... Nxb3 {[%clk 0:00:09]}
55. f5 {[%clk 0:00:07.3]} 55... Nd2 {[%clk 0:00:08.9]} 56. Bd3 {[%clk 0:00:07]}
56... a5 {[%clk 0:00:09.8]} 57. Kc5 {[%clk 0:00:06.8]} 57... a4 {[%clk
0:00:10.3]} 58. Be4 {[%clk 0:00:06.7]} 58... a3 {[%clk 0:00:11.2]} 59. Bd5
{[%clk 0:00:07.5]} 59... a2 {[%clk 0:00:11.3]} 60. Bxa2 {[%clk 0:00:08]} 60...
Rxa2 {[%clk 0:00:12.2]} 61. Kb4 {[%clk 0:00:08.2]} 61... Rc2 {[%clk 0:00:12]}
62. Ka3 {[%clk 0:00:08.1]} 62... Rc5 {[%clk 0:00:11.2]} 63. Kb4 {[%clk 0:00:09]}
63... Rxf5 {[%clk 0:00:11.3]} 64. Ka3 {[%clk 0:00:09.9]} 64... Rb5 {[%clk
0:00:11.2]} 65. Ka4 {[%clk 0:00:09.8]} 65... Rb7 {[%clk 0:00:10]} 66. Ka3 {[%clk
0:00:10.7]} 66... Nc4+ {[%clk 0:00:09.5]} 67. Ka4 {[%clk 0:00:11.6]} 67... Nb2+
{[%clk 0:00:08.1]} 68. Ka5 {[%clk 0:00:12.5]} 68... Bc3+ {[%clk 0:00:07.9]} 69.
Ka6 {[%clk 0:00:13.4]} 69... Rb3 {[%clk 0:00:07.7]} 70. Ka7 {[%clk 0:00:14.3]}
70... Nc4 {[%clk 0:00:08.3]} 71. Ka6 {[%clk 0:00:15.2]} 71... Ke8 {[%clk
0:00:08.6]} 72. Ka7 {[%clk 0:00:16.1]} 72... Kd7 {[%clk 0:00:09.1]} 73. Ka6
{[%clk 0:00:17]} 73... Kc7 {[%clk 0:00:08.7]} 74. Ka7 {[%clk 0:00:17.9]} 74...
Ra3# {[%clk 0:00:09.3]} 0-1

[Event "*** SCC Grand Prix: Titled Tuesday Blitz"]
[Site "Chess.com"]
[Date "2020.09.29"]
[Round "1"]
[White "MPGM"]
[Black "Msb2"]
[Result "0-1"]
[WhiteElo "2433"]
[BlackElo "2910"]
[TimeControl "180+1"]
[EndTime "10:08:37 PDT"]
[Termination "Msb2 won on time"]

1. c4 {[%clk 0:02:58.4]} 1... e5 {[%clk 0:02:58]} 2. Nc3 {[%clk 0:02:54.5]} 2...
Bb4 {[%clk 0:02:57.6]} 3. Nd5 {[%clk 0:02:49.2]} 3... a5 {[%clk 0:02:55.1]} 4.
e3 {[%clk 0:02:44.8]} 4... d6 {[%clk 0:02:49.5]} 5. a3 {[%clk 0:02:43]} 5... Bc5
{[%clk 0:02:49.6]} 6. d4 {[%clk 0:02:42]} 6... Ba7 {[%clk 0:02:50.3]} 7. Nf3
{[%clk 0:02:39.3]} 7... Nd7 {[%clk 0:02:48.1]} 8. Be2 {[%clk 0:02:36.4]} 8... c6
{[%clk 0:02:46.8]} 9. Nc3 {[%clk 0:02:36]} 9... Ngf6 {[%clk 0:02:47.5]} 10. O-O
{[%clk 0:02:34.4]} 10... O-O {[%clk 0:02:46.4]} 11. b3 {[%clk 0:02:31.9]} 11...
Qe7 {[%clk 0:02:44.4]} 12. Bb2 {[%clk 0:02:29.8]} 12... e4 {[%clk 0:02:42.8]}
13. Nd2 {[%clk 0:02:26.5]} 13... d5 {[%clk 0:02:43.2]} 14. cxd5 {[%clk
0:02:24.2]} 14... cxd5 {[%clk 0:02:44.1]} 15. Rc1 {[%clk 0:02:21.6]} 15... Bb8
{[%clk 0:02:41]} 16. h3 {[%clk 0:02:20.8]} 16... Rd8 {[%clk 0:02:37.9]} 17. Nb5
{[%clk 0:02:19.7]} 17... Nf8 {[%clk 0:02:38.4]} 18. Nb1 {[%clk 0:02:15.3]} 18...
Ng6 {[%clk 0:02:34.9]} 19. Qc2 {[%clk 0:02:05.3]} 19... Bf5 {[%clk 0:01:59.5]}
20. Rfd1 {[%clk 0:01:47.4]} 20... Ra6 {[%clk 0:01:54.5]} 21. Bf1 {[%clk
0:01:22.9]} 21... h5 {[%clk 0:01:49.7]} 22. N1c3 {[%clk 0:01:18.2]} 22... Nh4
{[%clk 0:01:49]} 23. Ne2 {[%clk 0:01:07.5]} 23... Qd7 {[%clk 0:01:41.4]} 24. Ng3
{[%clk 0:01:05.6]} 24... Be6 {[%clk 0:01:33]} 25. Qe2 {[%clk 0:00:54.3]} 25...
a4 {[%clk 0:01:10.5]} 26. bxa4 {[%clk 0:00:47]} 26... Rxa4 {[%clk 0:01:09.6]}
27. Nxh5 {[%clk 0:00:46.7]} 27... Nxh5 {[%clk 0:01:02.8]} 28. Qxh5 {[%clk
0:00:47.6]} 28... Ng6 {[%clk 0:01:02.7]} 29. Nc3 {[%clk 0:00:42]} 29... Ra5
{[%clk 0:01:01.8]} 30. a4 {[%clk 0:00:40.5]} 30... Ne7 {[%clk 0:00:46.1]} 31.
Bb5 {[%clk 0:00:39.4]} 31... Qd6 {[%clk 0:00:44.2]} 32. g3 {[%clk 0:00:36.9]}
32... Nf5 {[%clk 0:00:44.7]} 33. Ne2 {[%clk 0:00:31.9]} 33... g6 {[%clk
0:00:42.5]} 34. Qg5 {[%clk 0:00:31.2]} 34... Rf8 {[%clk 0:00:29]} 35. Nf4 {[%clk
0:00:30.5]} 35... Kh7 {[%clk 0:00:26.5]} 36. Rc3 {[%clk 0:00:26.4]} 36... Qb4
{[%clk 0:00:23.2]} 37. Rd2 {[%clk 0:00:21]} 37... Bxf4 {[%clk 0:00:19.6]} 38.
Qxf4 {[%clk 0:00:19.4]} 38... Raa8 {[%clk 0:00:17.8]} 39. Rdc2 {[%clk
0:00:19.5]} 39... Rfc8 {[%clk 0:00:12.7]} 40. Ba3 {[%clk 0:00:10.4]} 40... Qb1+
{[%clk 0:00:09.2]} 41. Rc1 {[%clk 0:00:09.8]} 41... Qa2 {[%clk 0:00:09.9]} 42.
Rxc8 {[%clk 0:00:09.5]} 42... Rxc8 {[%clk 0:00:10.8]} 43. Rxc8 {[%clk
0:00:09.9]} 43... Bxc8 {[%clk 0:00:11.7]} 44. Bc5 {[%clk 0:00:08.9]} 44... Qb1+
{[%clk 0:00:11.3]} 45. Kh2 {[%clk 0:00:08.8]} 45... Qd1 {[%clk 0:00:10.6]} 46.
Bb6 {[%clk 0:00:07.1]} 46... Be6 {[%clk 0:00:10.7]} 47. a5 {[%clk 0:00:07.1]}
47... f6 {[%clk 0:00:09.3]} 48. Be8 {[%clk 0:00:05.2]} 48... g5 {[%clk 0:00:09]}
49. Qc7+ {[%clk 0:00:05.2]} 49... Kh6 {[%clk 0:00:09.5]} 50. Qd8 {[%clk
0:00:04.5]} 50... Kg7 {[%clk 0:00:08.1]} 51. Qc7+ {[%clk 0:00:04.6]} 51... Kf8
{[%clk 0:00:07]} 52. Bb5 {[%clk 0:00:03.7]} 52... Qf3 {[%clk 0:00:05.3]} 53.
Bc5+ {[%clk 0:00:03.8]} 53... Kg8 {[%clk 0:00:05.3]} 54. Qd8+ {[%clk 0:00:03.7]}
54... Kg7 {[%clk 0:00:04.9]} 55. Kg1 {[%clk 0:00:04]} 55... Nxe3 {[%clk
0:00:04.7]} 56. Qf8+ {[%clk 0:00:03.5]} 56... Kg6 {[%clk 0:00:04.8]} 57. Be8+
{[%clk 0:00:04.1]} 57... Kf5 {[%clk 0:00:05.4]} 58. g4+ {[%clk 0:00:04.4]} 58...
Nxg4 {[%clk 0:00:05.5]} 59. hxg4+ {[%clk 0:00:05.3]} 59... Qxg4+ {[%clk
0:00:06.4]} 60. Kf1 {[%clk 0:00:05.4]} 60... Qd1+ {[%clk 0:00:07.3]} 61. Kg2
{[%clk 0:00:06]} 61... Qf3+ {[%clk 0:00:07.3]} 62. Kf1 {[%clk 0:00:06.6]} 62...
e3 {[%clk 0:00:05.5]} 63. Bg6+ {[%clk 0:00:04.8]} 63... Kxg6 {[%clk 0:00:04.4]}
64. Qe8+ {[%clk 0:00:04.9]} 64... Kf5 {[%clk 0:00:05]} 0-1

[Event "*** SCC Grand Prix: Titled Tuesday Blitz"]
[Site "Chess.com"]
[Date "2020.09.29"]
[Round "1"]
[White "Sueetin"]
[Black "GjakanTati"]
[Result "0-1"]
[WhiteElo "2308"]
[BlackElo "2630"]
[TimeControl "180+1"]
[EndTime "10:08:41 PDT"]
[Termination "GjakanTati won by checkmate"]

1. d4 {[%clk 0:02:58.7]} 1... Nf6 {[%clk 0:02:57.6]} 2. c4 {[%clk 0:02:58.4]}
2... g6 {[%clk 0:02:57.2]} 3. Nc3 {[%clk 0:02:57.7]} 3... Bg7 {[%clk 0:02:57.3]}
4. Nf3 {[%clk 0:02:57.7]} 4... O-O {[%clk 0:02:56.8]} 5. Bg5 {[%clk 0:02:57.6]}
5... c6 {[%clk 0:02:53]} 6. d5 {[%clk 0:02:37.4]} 6... cxd5 {[%clk 0:02:52.6]}
7. cxd5 {[%clk 0:02:37.4]} 7... d6 {[%clk 0:02:52.8]} 8. e4 {[%clk 0:02:24]}
8... Nbd7 {[%clk 0:02:50]} 9. Be2 {[%clk 0:02:19.1]} 9... Nc5 {[%clk 0:02:49.5]}
10. Nd2 {[%clk 0:02:16.7]} 10... a5 {[%clk 0:02:49.4]} 11. O-O {[%clk
0:02:15.1]} 11... Bd7 {[%clk 0:02:47.7]} 12. Be3 {[%clk 0:02:09]} 12... Rc8
{[%clk 0:02:47]} 13. f3 {[%clk 0:02:01.4]} 13... Ne8 {[%clk 0:02:45]} 14. a4
{[%clk 0:01:52.6]} 14... Nc7 {[%clk 0:02:43.7]} 15. Rc1 {[%clk 0:01:49.3]} 15...
N7a6 {[%clk 0:02:43.1]} 16. Nc4 {[%clk 0:01:25.8]} 16... Nb4 {[%clk 0:02:40.5]}
17. Na3 {[%clk 0:01:23]} 17... f5 {[%clk 0:02:33.9]} 18. Bd4 {[%clk 0:01:08.4]}
18... Bh6 {[%clk 0:02:32.5]} 19. Rb1 {[%clk 0:00:57.8]} 19... Qe8 {[%clk
0:02:26.2]} 20. Nab5 {[%clk 0:00:57.5]} 20... fxe4 {[%clk 0:02:16.3]} 21. fxe4
{[%clk 0:00:55.6]} 21... Rxf1+ {[%clk 0:02:16.8]} 22. Qxf1 {[%clk 0:00:54.7]}
22... Nb3 {[%clk 0:02:11.4]} 23. Bb6 {[%clk 0:00:49.6]} 23... Nd2 {[%clk
0:02:10.6]} 24. Qd1 {[%clk 0:00:45.5]} 24... Nxb1 {[%clk 0:02:10.4]} 25. Qxb1
{[%clk 0:00:46.4]} 25... Qf7 {[%clk 0:02:07.3]} 26. Bxa5 {[%clk 0:00:43.5]}
26... Be3+ {[%clk 0:02:05]} 27. Kh1 {[%clk 0:00:43.3]} 27... Qf2 {[%clk
0:02:01]} 28. Bxb4 {[%clk 0:00:40.9]} 28... Rf8 {[%clk 0:01:45.8]} 29. Na3
{[%clk 0:00:37.4]} 29... Rf4 {[%clk 0:01:40.4]} 30. Nc2 {[%clk 0:00:37.2]} 30...
Ba7 {[%clk 0:01:39.9]} 31. Qe1 {[%clk 0:00:37.5]} 31... Qxe1+ {[%clk 0:01:25.9]}
32. Nxe1 {[%clk 0:00:37.1]} 32... Bd4 {[%clk 0:01:23.1]} 33. Bf3 {[%clk
0:00:32]} 33... g5 {[%clk 0:01:20.5]} 34. Nd3 {[%clk 0:00:32.2]} 34... Rf8
{[%clk 0:01:19.3]} 35. Nb5 {[%clk 0:00:31]} 35... Bg7 {[%clk 0:01:16.1]} 36. h3
{[%clk 0:00:30.2]} 36... Rc8 {[%clk 0:01:14.9]} 37. Nc3 {[%clk 0:00:24.7]} 37...
Rc4 {[%clk 0:01:13.9]} 38. Kg1 {[%clk 0:00:19.1]} 38... Kf7 {[%clk 0:01:10.8]}
39. Kf1 {[%clk 0:00:19]} 39... Kg6 {[%clk 0:01:10.7]} 40. g4 {[%clk 0:00:17.9]}
40... Rc8 {[%clk 0:01:04.8]} 41. Ke2 {[%clk 0:00:18]} 41... Bd4 {[%clk
0:01:04.7]} 42. Ba3 {[%clk 0:00:13.2]} 42... Bxc3 {[%clk 0:01:03.3]} 43. bxc3
{[%clk 0:00:13.2]} 43... Rxc3 {[%clk 0:01:04.2]} 44. Bb4 {[%clk 0:00:09.2]}
44... Rc2+ {[%clk 0:01:04.1]} 45. Bd2 {[%clk 0:00:08.5]} 45... Bxa4 {[%clk
0:01:03.4]} 46. e5 {[%clk 0:00:08.2]} 46... Bb5 {[%clk 0:00:57.2]} 47. Be4+
{[%clk 0:00:06.9]} 47... Kh6 {[%clk 0:00:55.9]} 48. e6 {[%clk 0:00:05.8]} 48...
Rc4 {[%clk 0:00:51.8]} 49. Kf3 {[%clk 0:00:05.3]} 49... Rd4 {[%clk 0:00:51.3]}
50. Be3 {[%clk 0:00:04.7]} 50... Rxd3 {[%clk 0:00:50.5]} 51. Bxd3 {[%clk
0:00:05]} 51... Bxd3 {[%clk 0:00:51.4]} 52. h4 {[%clk 0:00:05.5]} 52... Kg7
{[%clk 0:00:46.9]} 53. Bxg5 {[%clk 0:00:05.1]} 53... Kf8 {[%clk 0:00:47.1]} 54.
Ke3 {[%clk 0:00:04.7]} 54... Bc2 {[%clk 0:00:47]} 55. h5 {[%clk 0:00:04.7]}
55... Bd1 {[%clk 0:00:46.9]} 56. Bh6+ {[%clk 0:00:04.2]} 56... Ke8 {[%clk
0:00:45.7]} 57. Kf4 {[%clk 0:00:03.9]} 57... b5 {[%clk 0:00:45.3]} 58. Bg7
{[%clk 0:00:04.3]} 58... b4 {[%clk 0:00:45]} 59. Kg5 {[%clk 0:00:04.5]} 59...
Bf3 {[%clk 0:00:38.3]} 60. Kh4 {[%clk 0:00:04.5]} 60... Bxd5 {[%clk 0:00:38.2]}
61. g5 {[%clk 0:00:04.5]} 61... Bxe6 {[%clk 0:00:38.3]} 62. h6 {[%clk
0:00:02.3]} 62... Bf5 {[%clk 0:00:37.5]} 63. Kg3 {[%clk 0:00:02.5]} 63... e5
{[%clk 0:00:37.1]} 64. Kf3 {[%clk 0:00:02.6]} 64... Ke7 {[%clk 0:00:37.1]} 65.
Ke3 {[%clk 0:00:02.9]} 65... Ke6 {[%clk 0:00:37]} 66. Bf6 {[%clk 0:00:03.2]}
66... d5 {[%clk 0:00:36.8]} 67. Kd2 {[%clk 0:00:01.7]} 67... d4 {[%clk
0:00:36.8]} 68. Bg7 {[%clk 0:00:01.5]} 68... Kd5 {[%clk 0:00:36.6]} 69. Bf6
{[%clk 0:00:01.3]} 69... e4 {[%clk 0:00:36.2]} 70. Bg7 {[%clk 0:00:01.4]} 70...
e3+ {[%clk 0:00:35.7]} 71. Ke1 {[%clk 0:00:01.7]} 71... d3 {[%clk 0:00:35.1]}
72. Bf8 {[%clk 0:00:02.6]} 72... b3 {[%clk 0:00:34.6]} 73. Bb4 {[%clk
0:00:02.9]} 73... b2 {[%clk 0:00:33.9]} 74. Bc3 {[%clk 0:00:03.3]} 74... b1=Q#
{[%clk 0:00:33.9]} 0-1

[Event "*** SCC Grand Prix: Titled Tuesday Blitz"]
[Site "Chess.com"]
[Date "2020.09.29"]
[Round "1"]
[White "Parhamov"]
[Black "pedromartinez91"]
[Result "1-0"]
[WhiteElo "2967"]
[BlackElo "2448"]
[TimeControl "180+1"]
[EndTime "10:08:46 PDT"]
[Termination "Parhamov won on time"]

1. e4 {[%clk 0:03:00.7]} 1... e6 {[%clk 0:02:58.9]} 2. d4 {[%clk 0:02:57.5]}
2... d5 {[%clk 0:02:59.2]} 3. Nc3 {[%clk 0:02:57.9]} 3... Nf6 {[%clk 0:02:58.8]}
4. e5 {[%clk 0:02:56.7]} 4... Ne4 {[%clk 0:02:58.7]} 5. Nce2 {[%clk 0:02:55.7]}
5... f6 {[%clk 0:02:54.6]} 6. f3 {[%clk 0:02:33.7]} 6... Ng5 {[%clk 0:02:54.3]}
7. f4 {[%clk 0:02:27.9]} 7... Ne4 {[%clk 0:02:53.1]} 8. Ng3 {[%clk 0:02:28.3]}
8... c5 {[%clk 0:02:49]} 9. Nf3 {[%clk 0:02:11.9]} 9... Nxg3 {[%clk 0:02:48.1]}
10. hxg3 {[%clk 0:02:10.9]} 10... cxd4 {[%clk 0:02:49]} 11. Bd3 {[%clk
0:02:09.2]} 11... f5 {[%clk 0:02:46.3]} 12. Nxd4 {[%clk 0:02:06.8]} 12... Nc6
{[%clk 0:02:46.4]} 13. Be3 {[%clk 0:02:06.7]} 13... Bd7 {[%clk 0:02:37.4]} 14.
c3 {[%clk 0:02:05.4]} 14... Nxd4 {[%clk 0:02:28.7]} 15. Bxd4 {[%clk 0:02:04.4]}
15... Be7 {[%clk 0:02:09.9]} 16. Qf3 {[%clk 0:01:44.3]} 16... g6 {[%clk
0:02:01]} 17. O-O-O {[%clk 0:01:42.5]} 17... h5 {[%clk 0:02:00.6]} 18. g4 {[%clk
0:01:38.7]} 18... Qa5 {[%clk 0:01:52.3]} 19. Kb1 {[%clk 0:01:38]} 19... O-O-O
{[%clk 0:01:38.6]} 20. gxh5 {[%clk 0:01:36.4]} 20... gxh5 {[%clk 0:01:35.9]} 21.
Rxh5 {[%clk 0:01:37.3]} 21... Rxh5 {[%clk 0:01:29.4]} 22. Qxh5 {[%clk
0:01:37.1]} 22... Bb5 {[%clk 0:01:30.1]} 23. Qf7 {[%clk 0:01:26.7]} 23... Bxd3+
{[%clk 0:01:30]} 24. Rxd3 {[%clk 0:01:26.2]} 24... Qa6 {[%clk 0:01:30.5]} 25.
Rd1 {[%clk 0:01:17.9]} 25... Bh4 {[%clk 0:01:24.1]} 26. Qh5 {[%clk 0:01:16.2]}
26... Bg3 {[%clk 0:01:17.1]} 27. Qf3 {[%clk 0:01:15.8]} 27... Rg8 {[%clk
0:01:16.7]} 28. a3 {[%clk 0:01:09.3]} 28... Rg4 {[%clk 0:01:10.4]} 29. Be3
{[%clk 0:01:09.7]} 29... Qc4 {[%clk 0:01:08.1]} 30. Rd4 {[%clk 0:01:08.7]} 30...
Qa6 {[%clk 0:01:02.1]} 31. Qd1 {[%clk 0:01:02.5]} 31... Bh4 {[%clk 0:00:55.3]}
32. c4 {[%clk 0:00:54.2]} 32... dxc4 {[%clk 0:00:12.2]} 33. Rd6 {[%clk
0:00:48.4]} 33... Qb5 {[%clk 0:00:10.5]} 34. Rd2 {[%clk 0:00:14]} 34... Be7
{[%clk 0:00:10.3]} 35. Bd4 {[%clk 0:00:12.9]} 35... Bxa3 {[%clk 0:00:09.2]} 36.
Bxa7 {[%clk 0:00:09.3]} 36... Be7 {[%clk 0:00:09.2]} 37. Bd4 {[%clk 0:00:09.4]}
37... Rg3 {[%clk 0:00:08.8]} 38. Qh5 {[%clk 0:00:09.3]} 38... Rd3 {[%clk
0:00:07.4]} 39. Rxd3 {[%clk 0:00:05.1]} 39... cxd3 {[%clk 0:00:08.3]} 40. Bc3
{[%clk 0:00:06]} 40... Qb3 {[%clk 0:00:08]} 41. Ka1 {[%clk 0:00:03]} 41... Qa4+
{[%clk 0:00:07.9]} 42. Kb1 {[%clk 0:00:03]} 42... Qc2+ {[%clk 0:00:08.6]} 43.
Ka2 {[%clk 0:00:03.9]} 43... d2 {[%clk 0:00:09.2]} 44. Qe8+ {[%clk 0:00:03.5]}
44... Bd8 {[%clk 0:00:08.5]} 45. Qxe6+ {[%clk 0:00:03.9]} 45... Kb8 {[%clk
0:00:08.4]} 46. Qd6+ {[%clk 0:00:04.5]} 46... Bc7 {[%clk 0:00:08.9]} 47. Qxd2
{[%clk 0:00:04.8]} 47... Qa4+ {[%clk 0:00:09.6]} 48. Kb1 {[%clk 0:00:05.4]}
48... Qe4+ {[%clk 0:00:10.3]} 49. Kc1 {[%clk 0:00:05.9]} 49... Bb6 {[%clk
0:00:09.1]} 50. Qd6+ {[%clk 0:00:05.9]} 50... Ka7 {[%clk 0:00:09.1]} 51. Bd2
{[%clk 0:00:06.5]} 51... Qc4+ {[%clk 0:00:08.4]} 52. Kb1 {[%clk 0:00:06.5]}
52... Qf1+ {[%clk 0:00:08]} 53. Ka2 {[%clk 0:00:06.8]} 53... Qc4+ {[%clk
0:00:08.6]} 54. Kb1 {[%clk 0:00:07.1]} 54... Qf1+ {[%clk 0:00:08.6]} 55. Kc2
{[%clk 0:00:07.5]} 55... Qc4+ {[%clk 0:00:08.5]} 56. Bc3 {[%clk 0:00:08.1]}
56... Qe4+ {[%clk 0:00:08.7]} 57. Qd3 {[%clk 0:00:08.3]} 57... Qxg2+ {[%clk
0:00:08.7]} 58. Kb3 {[%clk 0:00:08.3]} 58... Qc6 {[%clk 0:00:07.9]} 59. Qc4
{[%clk 0:00:08.3]} 59... Qf3 {[%clk 0:00:06.5]} 60. e6 {[%clk 0:00:08.2]} 60...
Qe3 {[%clk 0:00:05.9]} 61. Ka2 {[%clk 0:00:08.3]} 61... Bc5 {[%clk 0:00:05.1]}
62. Be5 {[%clk 0:00:08.4]} 62... Qe4 {[%clk 0:00:02]} 63. Qxe4 {[%clk
0:00:08.1]} 63... fxe4 {[%clk 0:00:02.1]} 64. f5 {[%clk 0:00:08.4]} 64... e3
{[%clk 0:00:02.3]} 65. f6 {[%clk 0:00:09]} 65... e2 {[%clk 0:00:02.6]} 66. Bg3
{[%clk 0:00:09.6]} 66... Kb6 {[%clk 0:00:01.7]} 67. e7 {[%clk 0:00:09.8]} 67...
Bxe7 {[%clk 0:00:01.4]} 68. fxe7 {[%clk 0:00:10.7]} 1-0